fUST/lending_fUST_20260109
["ID","MTS","AMOUNT","RATE_DAILY","PERIOD"]
[401042436,1767892254993,-171.829328,0.00027397,5]
[401042437,1767892255002,-617.23,0.00027397,5]
[401042438,1767892255012,-500.0,0.00027397,5]
[401042439,1767892255021,-500.0,0.00027397,5]
[401042440,1767892255030,-500.0,0.00027397,5]
[401042441,1767892255039,-500.0,0.00027397,5]
[401042442,1767892255049,-500.0,0.00027397,5]
[401042443,1767892255059,-500.0,0.00027397,5]
[401042444,1767892255068,-500.0,0.00027397,5]
[401042445,1767892255077,-251.453668,0.00027397,5]
[401042446,1767892255086,-500.0,0.00027397,5]
[401042447,1767892255095,-500.0,0.00027397,5]
[401042448,1767892255104,-490.42329837,0.00027397,5]
[401042449,1767892255113,-500.0,0.00027397,5]
[401042450,1767892255123,-500.0,0.00027397,5]
[401042451,1767892255132,-202.30557151,0.00027397,5]
[401042452,1767892255141,-499.07300793,0.00027397,5]
[401042453,1767892255150,-500.0,0.00027397,5]
[401042454,1767892255160,-500.0,0.00027397,5]
[401042455,1767892255169,-509.60417229,0.00027397,5]
[401042456,1767892255179,-500.0,0.00027397,5]
[401042457,1767892255188,-500.0,0.00027397,5]
[401042458,1767892255197,-500.0,0.00027397,5]
[401042459,1767892255206,-500.0,0.00027397,5]
[401042460,1767892255215,-500.0,0.00027397,5]
[401042461,1767892255225,-500.0,0.00027397,5]
[401042462,1767892255234,-500.0,0.00027397,5]
[401042463,1767892255243,-500.0,0.00027397,5]
[401042464,1767892255252,-500.0,0.00027397,5]
[401042465,1767892255262,-500.0,0.00027397,5]
[401042466,1767892255273,-500.0,0.00027397,5]
[401042467,1767892255283,-500.0,0.00027397,5]
[401042468,1767892255292,-500.0,0.00027397,5]
[401042469,1767892255302,-503.45535182,0.00027397,5]
[401042470,1767892255311,-470.25050991,0.00027397,5]
[401042471,1767892255320,-500.0,0.00027397,5]
[401042472,1767892255330,-500.0,0.00027397,5]
[401042473,1767892255339,-500.0,0.00027397,5]
[401042474,1767892255350,-500.0,0.00027397,5]
[401042475,1767892255360,-500.22877989,0.00027397,5]
[401042476,1767892255369,-572.51856225,0.00027397,5]
[401042477,1767892255378,-500.0,0.00027397,5]
[401042478,1767892255387,-500.0,0.00027397,5]
[401042479,1767892255396,-500.0,0.00027397,5]
[401042480,1767892255405,-500.0,0.00027397,5]
[401042481,1767892255415,-364.18785897,0.00027397,5]
[401042482,1767892255424,-500.0,0.00027397,5]
[401042483,1767892255434,-500.0,0.00027397,5]
[401042484,1767892255444,-500.0,0.00027397,5]
[401042485,1767892255453,-500.0,0.00027397,5]
[401042486,1767892255463,-500.0,0.00027397,5]
[401042487,1767892255472,-500.0,0.00027397,5]
[401042488,1767892255481,-500.0,0.00027397,5]
[401042489,1767892255490,-500.0,0.00027397,5]
[401042490,1767892255499,-500.0,0.00027397,5]
[401042491,1767892255508,-500.0,0.00027397,5]
[401042492,1767892255518,-500.0,0.00027397,5]
[401042493,1767892255529,-260.20035193,0.00027397,5]
[401042494,1767892255538,-500.0,0.00027397,5]
[401042495,1767892255547,-500.0,0.00027397,5]
[401042496,1767892255557,-500.0,0.00027397,5]
[401042497,1767892255566,-596.83192885,0.00027397,5]
[401042498,1767892255576,-500.0,0.00027397,5]
[401042499,1767892255585,-515.28459477,0.00027397,5]
[401042500,1767892255595,-500.0,0.00027397,5]
[401042501,1767892255604,-500.0,0.00027397,5]
[401042502,1767892255614,-472.03494627,0.00027397,5]
[401042503,1767892255623,-500.0,0.00027397,5]
[401042504,1767892255633,-500.0,0.00027397,5]
[401042505,1767892255643,-500.0,0.00027397,5]
[401042506,1767892255652,-500.0,0.00027397,5]
[401042507,1767892255662,-1070.81,0.00027397,5]
[401042508,1767892255671,-500.0,0.00027397,5]
[401042509,1767892255680,-500.0,0.00027397,5]
[401042510,1767892255690,-500.0,0.00027397,5]
[401042511,1767892255699,-500.0,0.00027397,5]
[401042512,1767892255708,-500.0,0.00027397,5]
[401042513,1767892255718,-500.0,0.00027397,5]
[401042514,1767892255727,-500.0,0.00027397,5]
[401042515,1767892255737,-500.0,0.00027397,5]
[401042516,1767892255746,-500.0,0.00027397,5]
[401042517,1767892255756,-500.0,0.00027397,5]
[401042518,1767892255765,-500.0,0.00027397,5]
[401042519,1767892255775,-231.87064121,0.00027397,5]
[401042520,1767892255784,-1384.74,0.00027397,5]
[401042521,1767892255794,-500.0,0.00027397,5]
[401042522,1767892255803,-500.0,0.00027397,5]
[401042523,1767892255813,-500.0,0.00027397,5]
[401042524,1767892255822,-523.46407816,0.00027397,5]
[401042525,1767892255830,-1000.0,0.00027397,2]
[401042526,1767892255840,-500.0,0.00027397,5]
[401042527,1767892255849,-500.0,0.00027397,5]
[401042528,1767892255860,-500.0,0.00027397,5]
[401042529,1767892255869,-600.7,0.00027397,5]
[401042530,1767892255879,-500.0,0.00027397,5]
[401042531,1767892255889,-500.0,0.00027397,5]
[401042532,1767892255902,-545.73515473,0.00027397,5]
[401042533,1767892255912,-500.0,0.00027397,5]
[401042534,1767892255921,-500.0,0.00027397,5]
[401042535,1767892255930,-426.59458816,0.00027397,5]
[401042536,1767892255939,-500.0,0.00027397,5]
[401042537,1767892255948,-500.0,0.00027397,5]
[401042538,1767892255958,-305.15826194,0.00027397,5]
[401042539,1767892255967,-500.0,0.00027397,5]
[401042540,1767892255976,-165.45433663,0.00027397,5]
[401042541,1767892255986,-420.1395466,0.00027397,5]
[401042542,1767892255996,-638.33167233,0.00027397,5]
[401042543,1767892256006,-500.0,0.00027397,5]
[401042544,1767892256016,-500.0,0.00027397,5]
[401042545,1767892256025,-500.0,0.00027397,5]
[401042546,1767892256035,-303.34370149,0.00027397,5]
[401042547,1767892256044,-500.0,0.00027397,5]
[401042548,1767892256053,-500.0,0.00027397,5]
[401042549,1767892256063,-626.71943339,0.00027397,5]
[401042550,1767892256073,-500.0,0.00027397,5]
[401042551,1767892256082,-505.53910352,0.00027397,5]
[401042552,1767892256092,-500.0,0.00027397,5]
[401042553,1767892256101,-500.0,0.00027397,5]
[401042554,1767892256111,-238.07892816,0.00027397,5]
[401042555,1767892256120,-484.62746217,0.00027397,5]
[401042556,1767892256130,-500.0,0.00027397,5]
[401042557,1767892256139,-500.0,0.00027397,5]
[401042558,1767892256150,-478.26214005,0.00027397,5]
[401042559,1767892256159,-500.0,0.00027397,5]
[401042560,1767892256168,-239.31281826,0.00027397,5]
[401042561,1767892256178,-500.0,0.00027397,5]
[401042562,1767892256189,-500.0,0.00027397,5]
[401042563,1767892256199,-500.03203324,0.00027397,5]
[401042564,1767892256208,-265.83471327,0.00027397,5]
[401042565,1767892256218,-494.68552151,0.00027397,5]
[401042566,1767892256227,-500.0,0.00027397,5]
[401042567,1767892256236,-500.0,0.00027397,5]
[401042568,1767892256246,-500.0,0.00027397,5]
[401042569,1767892256255,-232.52766534,0.00027397,5]
[401042570,1767892256267,-500.0,0.00027397,5]
[401042571,1767892256277,-500.0,0.00027397,5]
[401042572,1767892256286,-500.0,0.00027397,5]
[401042573,1767892256295,-500.0,0.00027397,5]
[401042574,1767892256305,-500.0,0.00027397,5]
[401042575,1767892256315,-603.70169327,0.00027397,5]
[401042576,1767892256324,-500.0,0.00027397,5]
[401042577,1767892256335,-500.0,0.00027397,5]
[401042578,1767892256345,-596.81948286,0.00027397,5]
[401042579,1767892256354,-500.0,0.00027397,5]
[401042580,1767892256363,-500.0,0.00027397,5]
[401042581,1767892256373,-500.0,0.00027397,2]
[401042582,1767892256382,-465.51097158,0.00027397,5]
[401042583,1767892256391,-519.64026232,0.00027397,5]
[401042584,1767892256400,-500.0,0.00027397,5]
[401042585,1767892256410,-500.0,0.00027397,5]
[401042586,1767892256419,-500.0,0.00027397,5]
[401042587,1767892256428,-500.0,0.00027397,5]
[401042588,1767892256437,-500.0,0.00027397,5]
[401042589,1767892256445,-500.0,0.00027397,5]
[401042590,1767892256454,-2049.07,0.00027397,2]
[401042591,1767892256464,-500.0,0.00027397,5]
[401042592,1767892256473,-197.17019919,0.00027397,5]
[401042593,1767892256482,-501.78645618,0.00027397,5]
[401042594,1767892256492,-500.0,0.00027397,5]
[401042595,1767892256502,-426.05820737,0.00027397,5]
[401042596,1767892256512,-500.0,0.00027397,5]
[401042597,1767892256522,-248.21203371,0.00027397,5]
[401042598,1767892256531,-500.0,0.00027397,5]
[401042599,1767892256540,-500.0,0.00027397,5]
[401042600,1767892256550,-558.76503873,0.00027397,5]
[401042601,1767892256559,-500.0,0.00027397,5]
[401042602,1767892256570,-500.0,0.00027397,5]
[401042603,1767892256580,-264.94602625,0.00027397,5]
[401042604,1767892256589,-568.41961442,0.00027397,5]
[401042605,1767892256598,-436.13481985,0.00027397,5]
[401042606,1767892256607,-500.0,0.00027397,5]
[401042607,1767892256618,-511.18134693,0.00027397,5]
[401042608,1767892256757,-500.0,0.00027397,5]
[401042609,1767892256767,-500.0,0.00027397,5]
[401042610,1767892256776,-500.0,0.00027397,5]
[401042611,1767892256786,-500.0,0.00027397,5]
[401042612,1767892256796,-500.0,0.00027397,5]
[401042613,1767892256805,-500.0,0.00027397,5]
[401042614,1767892256814,-500.0,0.00027397,5]
[401042615,1767892256823,-500.0,0.00027397,5]
[401042616,1767892256834,-500.0,0.00027397,5]
[401042617,1767892256844,-503.53595779,0.00027397,5]
[401042618,1767892256855,-500.0,0.00027397,5]
[401042619,1767892256867,-2631.52,0.00027397,5]
[401042620,1767892256876,-510.49,0.00027397,5]
[401042621,1767892256886,-500.0,0.00027397,5]
[401042622,1767892256895,-500.0,0.00027397,5]
[401042623,1767892256904,-500.0,0.00027397,5]
[401042624,1767892256914,-500.0,0.00027397,5]
[401042625,1767892256926,-500.0,0.00027397,5]
[401042626,1767892256935,-255.85686071,0.00027397,5]
[401042627,1767892256944,-472.47042543,0.00027397,5]
[401042628,1767892256954,-500.0,0.00027397,5]
[401042629,1767892256963,-500.0,0.00027397,5]
[401042630,1767892256973,-500.0,0.00027397,5]
[401042631,1767892256983,-576.19027655,0.00027397,5]
[401042632,1767892256992,-500.0,0.00027397,5]
[401042633,1767892257002,-500.0,0.00027397,5]
[401042634,1767892257011,-500.0,0.00027397,5]
[401042635,1767892257021,-500.0,0.00027397,5]
[401042636,1767892257031,-500.0,0.00027397,5]
[401042637,1767892257042,-530.28533265,0.00027397,5]
[401042638,1767892257051,-500.0,0.00027397,5]
[401042639,1767892257062,-1899.8,0.00027397,5]
[401042640,1767892257072,-500.64884739,0.00027397,5]
[401042641,1767892257081,-500.0,0.00027397,5]
[401042642,1767892257090,-500.0,0.00027397,5]
[401042643,1767892257100,-9194.49,0.00027397,3]
[401042644,1767892257109,-8762.91,0.00027397,5]
[401042645,1767892257119,-500.0,0.00027397,5]
[401042646,1767892257128,-500.0,0.00027397,5]
[401042647,1767892257138,-500.0,0.00027397,5]
[401042648,1767892257148,-231.35186234,0.00027397,5]
[401042649,1767892257157,-196.11205714,0.00027397,5]
[401042650,1767892257167,-500.0,0.00027397,5]
[401042651,1767892257176,-500.0,0.00027397,5]
[401042652,1767892257185,-500.0,0.00027397,5]
[401042653,1767892257194,-401.18293215,0.00027397,5]
[401042654,1767892257203,-500.0,0.00027397,5]
[401042655,1767892257212,-500.0,0.00027397,5]
[401042656,1767892257222,-500.0,0.00027397,5]
[401042657,1767892257231,-500.65,0.00027397,5]
[401042658,1767892257240,-264.66520113,0.00027397,5]
[401042659,1767892257250,-2464.53,0.00027397,5]
[401042660,1767892257259,-500.0,0.00027397,5]
[401042661,1767892257270,-312.0179347,0.00027397,5]
[401042662,1767892257280,-512.70301219,0.00027397,5]
[401042663,1767892257290,-500.0,0.00027397,5]
[401042664,1767892257301,-1284.28,0.00027397,5]
[401042665,1767892257311,-500.0,0.00027397,5]
[401042666,1767892257322,-500.0,0.00027397,5]
[401042667,1767892257332,-500.0,0.00027397,5]
[401042668,1767892257342,-500.0,0.00027397,5]
[401042669,1767892257351,-500.0,0.00027397,5]
[401042670,1767892257360,-500.0,0.00027397,5]
[401042671,1767892257370,-4093.0,0.00027397,5]
[401042672,1767892257380,-500.0,0.00027397,5]
[401042673,1767892257389,-296.63672208,0.00027397,5]
[401042674,1767892257399,-500.0,0.00027397,5]
[401042675,1767892257408,-500.0,0.00027397,5]
[401042676,1767892257418,-500.0,0.00027397,5]
[401042677,1767892257427,-609.52007283,0.00027397,5]
[401042678,1767892257437,-500.0,0.00027397,5]
[401042679,1767892257446,-500.0,0.00027397,5]
[401042680,1767892257456,-500.0,0.00027397,5]
[401042681,1767892257465,-500.0,0.00027397,5]
[401042682,1767892257474,-608.53794219,0.00027397,5]
[401042683,1767892257483,-346.22265638,0.00027397,5]
[401042684,1767892257493,-526.99020727,0.00027397,5]
[401042685,1767892257502,-500.0,0.00027397,5]
[401042686,1767892257512,-500.0,0.00027397,5]
[401042687,1767892257522,-195.70720287,0.00027397,5]
[401042688,1767892257531,-500.0,0.00027397,5]
[401042689,1767892257541,-461.01723072,0.00027397,5]
[401042690,1767892257550,-500.0,0.00027397,5]
[401042691,1767892257559,-500.0,0.00027397,5]
[401042692,1767892257568,-500.0,0.00027397,5]
[401042693,1767892257578,-500.0,0.00027397,5]
[401042694,1767892257587,-500.0,0.00027397,5]
[401042695,1767892257597,-422.41762154,0.00027397,5]
[401042696,1767892257607,-500.0,0.00027397,5]
[401042697,1767892257618,-288.40410971,0.00027397,5]
[401042698,1767892257627,-650.0,0.00027397,5]
[401042699,1767892257637,-300.0,0.00027397,2]
[401042700,1767892257646,-300.0,0.00027397,2]
[401042701,1767892257655,-300.0,0.00027397,2]
[401042702,1767892257664,-300.0,0.00027397,2]
[401042703,1767892257674,-300.0,0.00027397,2]
[401042704,1767892257683,-300.0,0.00027397,2]
[401042705,1767892257692,-300.0,0.00027397,2]
[401042706,1767892257701,-300.0,0.00027397,2]
[401042707,1767892257710,-300.0,0.00027397,2]
[401042708,1767892257719,-500.0,0.00027397,5]
[401042709,1767892257728,-517.95,0.00027397,15]
[401042710,1767892257739,-157.24522628,0.00027397,5]
[401042711,1767892257749,-300.0,0.00027397,5]
[401042712,1767892257759,-514.97749556,0.00027397,5]
[401042713,1767892257768,-420.9785477,0.00027398,2]
[401042714,1767892257778,-22833.95,0.000274,2]
[401042715,1767892257788,-1200.0,0.00027437,7]
[401042716,1767892257798,-1200.0,0.00027515,7]
[401042717,1767892257808,-2373.26906487,0.00027517,2]
[401042718,1767892257817,-1000.0,0.00027528,30]
[401042719,1767892257827,-1000.0,0.00027528,30]
[401042720,1767892257837,-1000.0,0.00027528,30]
[401042721,1767892257846,-151.0,0.0002757,2]
[401042722,1767892257856,-209.40437684,0.0002757,2]
[401042723,1767892257865,-2773.56790519,0.0002757,2]
[401042724,1767892257874,-33454.72959,0.0002757,2]
[401042725,1767892257884,-574.12855637,0.0002757,2]
[401042726,1767892257893,-2000.0,0.00027667,7]
[401042727,1767892257903,-1200.0,0.00027668,7]
[401042728,1767892257912,-503.4507565,0.00027671,5]
[401042729,1767892257921,-500.0,0.00027671,5]
[401042730,1767892257930,-504.06016776,0.00027671,5]
[401042731,1767892257939,-500.0,0.00027671,5]
[401042732,1767892257949,-330.87410261,0.00027671,5]
[401042733,1767892257960,-1000.0,0.00027671,2]
[401042734,1767892257970,-500.0,0.00027671,5]
[401042735,1767892257979,-500.0,0.00027671,5]
[401042736,1767892257988,-224.40722067,0.00027671,5]
[401042737,1767892257998,-500.0,0.00027671,5]
[401042738,1767892258007,-500.0,0.00027671,5]
[401042739,1767892258017,-500.0,0.00027671,5]
[401042740,1767892258027,-568.90360566,0.00027671,5]
[401042741,1767892258036,-500.0,0.00027671,5]
[401042742,1767892258046,-545.04645145,0.00027671,5]
[401042743,1767892258055,-225.01475483,0.00027671,5]
[401042744,1767892258065,-200.0,0.00027671,5]
[401042745,1767892258076,-3855.87118539,0.00027671,5]
[401042746,1767892258088,-500.0,0.00027671,5]
[401042747,1767892258098,-500.0,0.00027671,5]
[401042748,1767892258107,-540.45,0.00027671,5]
[401042749,1767892258117,-500.0,0.00027671,5]
[401042750,1767892258126,-258.78412698,0.00027671,5]
[401042751,1767892258136,-313.77967107,0.00027671,5]
[401042752,1767892258145,-373.937416,0.00027671,5]
[401042753,1767892258155,-500.0,0.00027671,5]
[401042754,1767892258164,-500.0,0.00027671,5]
[401042755,1767892258174,-500.0,0.00027671,5]
[401042756,1767892258184,-500.0,0.00027671,5]
[401042757,1767892258194,-483.16888347,0.00027671,5]
[401042758,1767892258204,-500.0,0.00027671,5]
[401042759,1767892258214,-224.33978547,0.00027671,5]
[401042760,1767892258224,-500.0,0.00027671,5]
[401042761,1767892258234,-486.94532185,0.00027671,5]
[401042762,1767892258244,-500.0,0.00027671,5]
[401042763,1767892258254,-500.0,0.00027671,5]
[401042764,1767892258264,-500.0,0.00027671,5]
[401042765,1767892258276,-500.0,0.00027671,5]
[401042766,1767892258286,-500.0,0.00027671,5]
[401042767,1767892258295,-333.69361612,0.00027671,5]
[401042768,1767892258306,-576.39023583,0.00027671,5]
[401042769,1767892258316,-500.0,0.00027671,5]
[401042770,1767892258325,-500.0,0.00027671,5]
[401042771,1767892258334,-557.70418267,0.00027671,5]
[401042772,1767892258346,-543.12163328,0.00027671,5]
[401042773,1767892258355,-500.0,0.00027671,5]
[401042774,1767892258365,-503.79551309,0.00027671,5]
[401042775,1767892258375,-500.0,0.00027671,5]
[401042776,1767892258384,-500.0,0.00027671,5]
[401042777,1767892258394,-500.0,0.00027671,5]
[401042778,1767892258403,-500.0,0.00027671,5]
[401042779,1767892258413,-500.0,0.00027671,5]
[401042780,1767892258423,-630.75003866,0.00027671,5]
[401042781,1767892258433,-500.0,0.00027671,5]
[401042782,1767892258443,-500.0,0.00027671,5]
[401042783,1767892258453,-500.0,0.00027671,5]
[401042784,1767892258462,-500.0,0.00027671,5]
[401042785,1767892258472,-500.0,0.00027671,5]
[401042786,1767892258481,-292.75419184,0.00027671,5]
[401042787,1767892258491,-500.0,0.00027671,5]
[401042788,1767892258501,-515.81485861,0.00027671,5]
[401042789,1767892258511,-500.0,0.00027671,5]
[401042790,1767892258520,-500.0,0.00027671,5]
[401042791,1767892258529,-469.13911092,0.00027671,5]
[401042792,1767892258539,-500.0,0.00027671,5]
[401042793,1767892258549,-500.0,0.00027671,5]
[401042794,1767892258559,-508.76897208,0.00027671,5]
[401042795,1767892258568,-500.0,0.00027671,5]
[401042796,1767892258578,-500.0,0.00027671,5]
[401042797,1767892258588,-645.72003184,0.00027671,5]
[401042798,1767892258597,-500.0,0.00027671,5]
[401042799,1767892258606,-500.0,0.00027671,5]
[401042800,1767892258616,-500.0,0.00027671,5]
[401042801,1767892258626,-500.0,0.00027671,5]
[401042802,1767892258635,-500.0,0.00027671,5]
[401042803,1767892258645,-500.0,0.00027671,5]
[401042804,1767892258655,-500.0,0.00027671,2]
[401042805,1767892258664,-500.32363734,0.00027671,5]
[401042806,1767892258674,-500.0,0.00027671,5]
[401042807,1767892258683,-500.0,0.00027671,5]
[401042808,1767892258693,-500.0,0.00027671,5]
[401042809,1767892258702,-503.77604746,0.00027671,5]
[401042810,1767892258711,-500.0,0.00027671,5]
[401042811,1767892258721,-500.0,0.00027671,5]
[401042812,1767892258730,-501.92045733,0.00027671,5]
[401042813,1767892258739,-500.0,0.00027671,5]
[401042814,1767892258749,-500.0,0.00027671,5]
[401042815,1767892258758,-500.0,0.00027671,5]
[401042816,1767892258768,-500.0,0.00027671,5]
[401042817,1767892258778,-500.0,0.00027671,5]
[401042818,1767892258788,-500.0,0.00027671,5]
[401042819,1767892258798,-500.0,0.00027671,5]
[401042820,1767892258808,-500.0,0.00027671,5]
[401042821,1767892258817,-500.0,0.00027671,5]
[401042822,1767892258827,-500.0,0.00027671,5]
[401042823,1767892258837,-500.0,0.00027671,5]
[401042824,1767892258846,-511.10287536,0.00027671,5]
[401042825,1767892258856,-500.0,0.00027671,5]
[401042826,1767892258866,-500.46707225,0.00027671,5]
[401042827,1767892258875,-557.97,0.00027671,5]
[401042828,1767892258885,-579.32950732,0.00027671,5]
[401042829,1767892258894,-500.0,0.00027671,5]
[401042830,1767892258904,-500.0,0.00027671,5]
[401042831,1767892258913,-500.0,0.00027671,5]
[401042832,1767892258922,-500.0,0.00027671,5]
[401042833,1767892258932,-500.0,0.00027671,5]
[401042834,1767892258942,-500.0,0.00027671,5]
[401042835,1767892258952,-500.0,0.00027671,5]
[401042836,1767892258961,-500.0,0.00027671,5]
[401042837,1767892258971,-514.43435243,0.00027671,5]
[401042838,1767892258980,-500.0,0.00027671,5]
[401042839,1767892258989,-500.0,0.00027671,5]
[401042840,1767892258999,-500.0,0.00027671,5]
[401042841,1767892259008,-500.0,0.00027671,5]
[401042842,1767892259018,-500.0,0.00027671,5]
[401042843,1767892259028,-500.0,0.00027671,5]
[401042844,1767892259038,-416.21253971,0.00027671,5]
[401042845,1767892259048,-500.0,0.00027671,5]
[401042846,1767892259057,-311.26393298,0.00027671,5]
[401042847,1767892259067,-500.0,0.00027671,5]
[401042848,1767892259077,-500.0,0.00027671,5]
[401042849,1767892259087,-500.0,0.00027671,5]
[401042850,1767892259097,-500.0,0.00027671,5]
[401042851,1767892259107,-500.0,0.00027671,5]
[401042852,1767892259116,-518.0850426,0.00027671,5]
[401042853,1767892259125,-500.0,0.00027671,5]
[401042854,1767892259135,-500.0,0.00027671,5]
[401042855,1767892259145,-500.0,0.00027671,5]
[401042856,1767892259155,-500.0,0.00027671,5]
[401042857,1767892259288,-521.10202389,0.00027671,5]
[401042858,1767892259298,-500.0,0.00027671,5]
[401042859,1767892259309,-500.0,0.00027671,5]
[401042860,1767892259319,-500.0,0.00027671,5]
[401042861,1767892259328,-264.51554139,0.00027671,5]
[401042862,1767892259338,-500.0,0.00027671,5]
[401042863,1767892259350,-500.0,0.00027671,5]
[401042864,1767892259359,-266.54213205,0.00027671,5]
[401042865,1767892259369,-500.0,0.00027671,5]
[401042866,1767892259378,-281.11368785,0.00027671,5]
[401042867,1767892259388,-500.0,0.00027671,5]
[401042868,1767892259398,-500.0,0.00027671,5]
[401042869,1767892259407,-500.0,0.00027671,5]
[401042870,1767892259416,-500.0,0.00027671,5]
[401042871,1767892259426,-500.0,0.00027671,5]
[401042872,1767892259435,-500.0,0.00027671,5]
[401042873,1767892259445,-500.0,0.00027671,5]
[401042874,1767892259455,-500.0,0.00027671,5]
[401042875,1767892259464,-500.0,0.00027671,5]
[401042876,1767892259474,-500.0,0.00027671,5]
[401042877,1767892259483,-500.0,0.00027671,5]
[401042878,1767892259493,-178.56537981,0.00027671,5]
[401042879,1767892259503,-166.18222766,0.00027671,5]
[401042880,1767892259513,-500.0,0.00027671,5]
[401042881,1767892259522,-500.0,0.00027671,5]
[401042882,1767892259532,-500.0,0.00027671,5]
[401042883,1767892259541,-500.0,0.00027671,5]
[401042884,1767892259552,-500.0,0.00027671,5]
[401042885,1767892259561,-500.0,0.00027671,5]
[401042886,1767892259571,-504.10906512,0.00027671,2]
[401042887,1767892259581,-500.0,0.00027671,5]
[401042888,1767892259590,-500.0,0.00027671,5]
[401042889,1767892259600,-500.0,0.00027671,5]
[401042890,1767892259609,-500.0,0.00027671,5]
[401042891,1767892259619,-500.0,0.00027671,5]
[401042892,1767892259629,-500.0,0.00027671,2]
[401042893,1767892259639,-500.0,0.00027671,5]
[401042894,1767892259649,-500.0,0.00027671,5]
[401042895,1767892259659,-500.0,0.00027671,5]
[401042896,1767892259669,-523.7069086,0.00027671,5]
[401042897,1767892259679,-500.0,0.00027671,5]
[401042898,1767892259689,-278.33212368,0.00027671,2]
[401042899,1767892259698,-500.0,0.00027671,5]
[401042900,1767892259708,-500.0,0.00027671,5]
[401042901,1767892259718,-329.36853829,0.00027671,5]
[401042902,1767892259728,-500.0,0.00027671,5]
[401042903,1767892259738,-500.0,0.00027671,5]
[401042904,1767892259747,-269.05299709,0.00027671,5]
[401042905,1767892259757,-500.0,0.00027671,5]
[401042906,1767892259767,-500.0,0.00027671,5]
[401042907,1767892259778,-500.0,0.00027671,5]
[401042908,1767892259787,-500.0,0.00027671,5]
[401042909,1767892259796,-500.0,0.00027671,5]
[401042910,1767892259806,-500.0,0.00027671,5]
[401042911,1767892259815,-500.0,0.00027671,5]
[401042912,1767892259825,-500.0,0.00027671,5]
[401042913,1767892259835,-500.0,0.00027671,5]
[401042914,1767892259844,-500.0,0.00027671,5]
[401042915,1767892259853,-500.0,0.00027671,5]
[401042916,1767892259863,-282.91987214,0.00027671,5]
[401042917,1767892259872,-500.0,0.00027671,5]
[401042918,1767892259882,-576.04256074,0.00027671,5]
[401042919,1767892259891,-500.0,0.00027671,5]
[401042920,1767892259901,-500.0,0.00027671,5]
[401042921,1767892259910,-500.0,0.00027671,5]
[401042922,1767892259919,-500.0,0.00027671,5]
[401042923,1767892259928,-500.0,0.00027671,5]
[401042924,1767892259938,-365.15857113,0.00027671,5]
[401042925,1767892259947,-500.0,0.00027671,5]
[401042926,1767892259957,-500.0,0.00027671,5]
[401042927,1767892259966,-500.0,0.00027671,5]
[401042928,1767892259976,-500.0,0.00027671,5]
[401042929,1767892259985,-500.0,0.00027671,5]
[401042930,1767892259994,-500.0,0.00027671,5]
[401042931,1767892260004,-500.0,0.00027671,5]
[401042932,1767892260013,-500.0,0.00027671,5]
[401042933,1767892260023,-419.39983114,0.00027671,5]
[401042934,1767892260033,-500.0,0.00027671,5]
[401042935,1767892260043,-500.0,0.00027671,5]